fUST/lending_fUST_20260105
["ID","MTS","AMOUNT","RATE_DAILY","PERIOD"]
[400449375,1767567346177,313.01706951,9.013e-05,2]
[400449376,1767567400866,232.66,6.957e-05,2]
[400449377,1767567401283,348.98,7.273e-05,2]
[400449378,1767567401746,465.31,7.59e-05,2]
[400449379,1767567402279,581.64,7.906e-05,2]
[400449380,1767567402684,697.97,8.222e-05,2]
[400449381,1767567403082,814.29,8.538e-05,2]
[400449382,1767567403495,930.62,8.855e-05,2]
[400449383,1767567403945,1046.95,9.171e-05,2]
[400449384,1767567404414,1163.28,9.487e-05,2]
[400449385,1767567475859,28.80211777,7.132e-05,2]
[400449386,1767567475893,183.70788223,7.132e-05,2]
[400449387,1767567476272,283.35,7.442e-05,2]
[400449388,1767567476992,354.19,7.752e-05,2]
[400449389,1767567477153,425.03,8.062e-05,2]
[400449390,1767567477565,495.86,8.373e-05,2]
[400449391,1767567477980,566.7,8.683e-05,2]
[400449392,1767567478404,637.54,8.993e-05,2]
[400449393,1767567478877,708.38,9.303e-05,2]
[400449395,1767567549893,206.64,7.266e-05,2]
[400449396,1767567550288,275.52,7.582e-05,2]
[400449397,1767567550710,344.4,7.898e-05,2]
[400449398,1767567551111,413.27,8.214e-05,2]
[400449399,1767567551573,482.15,8.53e-05,2]
[400449400,1767567552037,551.03,8.846e-05,2]
[400449401,1767567552435,619.91,9.162e-05,2]
[400449402,1767567552828,688.79,9.478e-05,2]
[400449403,1767567606940,-207.44695063,9.578e-05,2]
[400449404,1767567606966,-269.3805066,9.578e-05,2]
[400449405,1767567622702,186.73,7.658e-05,2]
[400449406,1767567623109,233.41,7.977e-05,2]
[400449407,1767567623529,280.09,8.296e-05,2]
[400449408,1767567623925,326.77,8.615e-05,2]
[400449409,1767567624401,373.45,8.934e-05,2]
[400449410,1767567624806,420.13,9.253e-05,2]
[400449411,1767567625206,466.82,9.572e-05,2]
[400449412,1767567628341,152.82894366,9.578e-05,2]
[400449413,1767567640446,-284.6194934,9.578e-05,2]
[400449414,1767567692004,151.92,7.656e-05,2]
[400449415,1767567692880,189.9,7.975e-05,2]
[400449416,1767567693299,227.88,8.294e-05,2]
[400449417,1767567693842,265.86,8.613e-05,2]
[400449418,1767567694252,303.84,8.932e-05,2]
[400449419,1767567694695,341.82,9.251e-05,2]
[400449420,1767567695112,379.81,9.57e-05,2]
[400449422,1767567739688,7569.7410132,9.578e-05,2]
[400449423,1767567739719,10000.01,9.578e-05,2]
[400449424,1767567739749,10000.01,9.578e-05,2]
[400449425,1767567739780,10000.01,9.578e-05,2]
[400449426,1767567739810,10000.01,9.578e-05,2]
[400449427,1767567761638,187.34,7.745e-05,2]
[400449428,1767567762064,224.81,8.055e-05,2]
[400449429,1767567762490,262.28,8.365e-05,2]
[400449430,1767567763372,299.74,8.675e-05,2]
[400449431,1767567763846,337.21,8.984e-05,2]
[400449432,1767567764216,374.68,9.294e-05,2]
[400449433,1767567782830,300.0,9.576e-05,2]
[400449434,1767567786372,-168.31264618,9.577e-05,2]
[400449435,1767567786409,-165.32828858,9.577e-05,2]
[400449436,1767567790254,-334.67171142,9.577e-05,2]
[400449437,1767567790283,-232.32828861,9.577e-05,2]
[400449438,1767567792928,-259.99001244,9.577e-05,2]
[400449439,1767567810222,333.64093476,9.577e-05,2]
[400449440,1767567830561,182.82,7.558e-05,2]
[400449441,1767567830970,228.53,7.873e-05,2]
[400449442,1767567831419,274.24,8.188e-05,2]
[400449443,1767567832289,319.94,8.503e-05,2]
[400449444,1767567832772,365.65,8.818e-05,2]
[400449445,1767567833188,411.36,9.133e-05,2]
[400449446,1767567833608,457.06,9.448e-05,2]
[400449447,1767567842736,300.0,9.576e-05,2]
[400449449,1767567888742,258.99386045,9.576e-05,2]
[400449450,1767567888774,500.0,9.576e-05,2]
[400449451,1767567890225,500.0,9.576e-05,2]
[400449452,1767567890257,500.0,9.576e-05,2]
[400449453,1767567890290,238.89344188,9.576e-05,2]
[400449454,1767567890342,530.64383784,9.576e-05,2]
[400449455,1767567890371,500.0,9.576e-05,2]
[400449456,1767567890407,500.0,9.576e-05,2]
[400449457,1767567890452,500.0,9.576e-05,2]
[400449458,1767567890497,541.04020397,9.576e-05,2]
[400449459,1767567890540,500.0,9.576e-05,2]
[400449460,1767567901287,300.0,9.576e-05,2]
[400449461,1767567901982,162.53,7.555e-05,2]
[400449462,1767567902018,300.0,9.576e-05,2]
[400449463,1767567902399,203.16,7.87e-05,2]
[400449464,1767567902810,243.79,8.185e-05,2]
[400449465,1767567903378,284.42,8.5e-05,2]
[400449466,1767567903789,263.2977211,8.814e-05,2]
[400449467,1767567913223,-61.7522789,8.814e-05,2]
[400449468,1767567913258,-365.68,9.129e-05,2]
[400449469,1767567913291,-406.31,9.444e-05,2]
[400449470,1767567924403,5000.0,9.487e-05,2]
[400449471,1767567947950,246.6569731,9.487e-05,2]
[400449472,1767567971149,219.32,7.174e-05,2]
[400449473,1767567971410,292.42,7.485e-05,2]
[400449474,1767567971824,365.53,7.797e-05,2]
[400449475,1767567972123,2208.5984691,9.487e-05,2]
[400449476,1767567972148,937.87583012,9.487e-05,2]
[400449477,1767567972232,438.63,8.109e-05,2]
[400449478,1767567972639,511.74,8.421e-05,2]
[400449479,1767567973050,584.85,8.733e-05,2]
[400449480,1767567973466,657.95,9.045e-05,2]
[400449481,1767567973881,731.06,9.357e-05,2]
[400449483,1767568043534,216.16,6.859e-05,2]
[400449484,1767568044030,324.25,7.171e-05,2]
[400449485,1767568044486,432.33,7.483e-05,2]
[400449486,1767568044901,540.41,7.795e-05,2]
[400449487,1767568045353,648.49,8.107e-05,2]
[400449488,1767568045792,756.57,8.418e-05,2]
[400449489,1767568046218,864.65,8.73e-05,2]
[400449490,1767568046627,972.74,9.042e-05,2]
[400449491,1767568047077,1080.82,9.354e-05,2]
[400449492,1767568052636,301.48416988,8.726e-05,2]
[400449493,1767568052661,9698.51583012,8.726e-05,2]
[400449494,1767568085504,301.49416988,9.487e-05,2]
[400449495,1767568085527,4293.97295897,9.487e-05,2]
[400449496,1767568101329,499.77739692,9.487e-05,2]
[400449497,1767568117656,180.31,6.549e-05,2]
[400449498,1767568118102,360.63,6.861e-05,2]
[400449499,1767568118541,540.94,7.173e-05,2]
[400449500,1767568118957,721.26,7.485e-05,2]
[400449501,1767568119364,901.57,7.797e-05,2]
[400449502,1767568119790,1081.89,8.109e-05,2]
[400449503,1767568120209,1262.2,8.421e-05,2]
[400449504,1767568120675,157.45964411,8.732e-05,2]
[400449505,1767568120700,1285.05035589,8.732e-05,2]
[400449506,1767568121072,1622.83,9.044e-05,2]
[400449507,1767568121482,1803.14,9.356e-05,2]
[400449508,1767568121822,-177.14330089,9.576e-05,2]
[400449509,1767568121852,-220.72620171,9.576e-05,2]
[400449510,1767568121882,-236.11493192,9.576e-05,2]
[400449511,1767568121910,-300.0,9.576e-05,2]
[400449512,1767568121940,-300.0,9.576e-05,2]
[400449513,1767568121968,-253.43139623,9.576e-05,2]
[400449514,1767568122000,-7.68169895,9.577e-05,2]
[400449515,1767568122031,-500.0,9.577e-05,2]
[400449516,1767568122062,-500.0,9.577e-05,2]
[400449517,1767568122093,-500.0,9.577e-05,2]
[400449518,1767568122298,-500.0,9.577e-05,2]
[400449519,1767568122328,-500.0,9.577e-05,2]
[400449520,1767568122359,-500.0,9.577e-05,2]
[400449521,1767568122390,-500.0,9.577e-05,2]
[400449522,1767568122984,-500.0,9.577e-05,2]
[400449523,1767568123017,-500.0,9.577e-05,2]
[400449524,1767568123047,-500.0,9.577e-05,2]
[400449525,1767568123077,-500.0,9.577e-05,2]
[400449526,1767568123107,-500.0,9.577e-05,2]
[400449527,1767568123137,-500.0,9.577e-05,2]
[400449528,1767568123166,-500.0,9.577e-05,2]
[400449529,1767568123194,-500.0,9.577e-05,2]
[400449530,1767568123223,-500.0,9.577e-05,2]
[400449531,1767568123253,-396.67796651,9.577e-05,2]
[400449532,1767568123295,-500.0,9.577e-05,2]
[400449533,1767568123323,-500.0,9.577e-05,2]
[400449534,1767568123351,-500.0,9.577e-05,2]
[400449535,1767568123380,-500.0,9.577e-05,2]
[400449536,1767568123412,-500.0,9.577e-05,2]
[400449537,1767568123442,-500.0,9.577e-05,2]
[400449538,1767568123470,-500.0,9.577e-05,2]
[400449539,1767568123498,-500.0,9.577e-05,2]
[400449540,1767568123527,-500.0,9.577e-05,2]
[400449541,1767568123555,-500.0,9.577e-05,2]
[400449542,1767568123836,-500.0,9.577e-05,2]
[400449543,1767568123866,-500.0,9.577e-05,2]
[400449544,1767568123897,-500.0,9.577e-05,2]
[400449545,1767568123928,-500.0,9.577e-05,2]
[400449546,1767568123958,-500.0,9.577e-05,2]
[400449547,1767568123989,-500.0,9.577e-05,2]
[400449548,1767568124019,-500.0,9.577e-05,2]
[400449549,1767568124048,-474.90260353,9.577e-05,2]
[400449550,1767568124077,-500.0,9.577e-05,2]
[400449551,1767568124107,-500.0,9.577e-05,2]
[400449552,1767568149340,-300.0,9.576e-05,2]
[400449553,1767568149370,-1546.24285547,9.576e-05,2]
[400449554,1767568149402,-500.0,9.577e-05,2]
[400449555,1767568149433,-500.0,9.577e-05,2]
[400449556,1767568149462,-500.0,9.577e-05,2]
[400449557,1767568149491,-500.0,9.577e-05,2]
[400449558,1767568149520,-500.0,9.577e-05,2]
[400449559,1767568149551,-500.0,9.577e-05,2]
[400449563,1767568159666,-500.0,9.577e-05,2]
[400449564,1767568159702,-500.0,9.577e-05,2]
[400449565,1767568159733,-500.0,9.577e-05,2]
[400449566,1767568159763,-500.0,9.577e-05,2]
[400449567,1767568159793,-500.0,9.577e-05,2]
[400449568,1767568159824,-500.0,9.577e-05,2]
[400449569,1767568159855,-500.0,9.577e-05,2]
[400449570,1767568159885,-350.0,9.577e-05,2]
[400449571,1767568159920,-500.0,9.577e-05,2]
[400449572,1767568159952,-500.0,9.577e-05,2]
[400449573,1767568193838,211.49,7.076e-05,2]
[400449574,1767568194241,281.98,7.384e-05,2]
[400449575,1767568194648,352.48,7.691e-05,2]
[400449576,1767568195061,422.97,7.999e-05,2]
[400449577,1767568195471,493.47,8.307e-05,2]
[400449578,1767568195874,563.96,8.614e-05,2]
[400449579,1767568196287,634.46,8.922e-05,2]
[400449580,1767568196705,704.95,9.23e-05,2]
[400449585,1767568232494,-300.0,9.576e-05,2]
[400449586,1767568232504,-300.0,9.576e-05,2]
[400449587,1767568232514,-182.0,9.576e-05,2]
[400449588,1767568232523,-554.0,9.576e-05,2]
[400449589,1767568232532,-144.000025,9.577e-05,2]
[400449590,1767568232543,-355.999975,9.577e-05,2]
[400449591,1767568232553,-500.0,9.577e-05,2]
[400449592,1767568232562,-500.0,9.577e-05,2]
[400449593,1767568232572,-20.70541319,9.577e-05,2]
[400449748,1767568240730,-479.29458681,9.577e-05,2]
[400449749,1767568240741,-500.0,9.577e-05,2]
[400449750,1767568240751,-500.0,9.577e-05,2]
[400449751,1767568240761,-500.0,9.577e-05,2]
[400449752,1767568240771,-500.0,9.577e-05,2]
[400449753,1767568240780,-500.0,9.577e-05,2]
[400449754,1767568240789,-500.0,9.577e-05,2]
[400449755,1767568240798,-500.0,9.577e-05,2]
[400449756,1767568240808,-500.0,9.577e-05,2]
[400449757,1767568240818,-500.0,9.577e-05,2]
[400449758,1767568240827,-500.0,9.577e-05,2]
[400449759,1767568240837,-500.0,9.577e-05,2]
[400449760,1767568240846,-500.0,9.577e-05,2]
[400449761,1767568240855,-500.0,9.577e-05,2]
[400449762,1767568240865,-500.0,9.577e-05,2]
[400449763,1767568240875,-500.0,9.577e-05,2]
[400449764,1767568240885,-500.0,9.577e-05,2]
[400449765,1767568240894,-500.0,9.577e-05,2]
[400449766,1767568240903,-500.0,9.577e-05,2]
[400449767,1767568240913,-500.0,9.577e-05,2]
[400449768,1767568240922,-500.0,9.577e-05,2]
[400449769,1767568240931,-250.0,9.577e-05,2]
[400449770,1767568240941,-500.0,9.577e-05,2]
[400449771,1767568240951,-500.0,9.577e-05,2]
[400449772,1767568240961,-500.0,9.577e-05,2]
[400449773,1767568240971,-500.0,9.577e-05,2]
[400449774,1767568240981,-500.0,9.577e-05,2]
[400449775,1767568240991,-500.0,9.577e-05,2]
[400449776,1767568241001,-500.0,9.577e-05,2]
[400449777,1767568241011,-500.0,9.577e-05,2]
[400449778,1767568241021,-500.0,9.577e-05,2]
[400449779,1767568241031,-30845.1735777,9.578e-05,2]
[400449780,1767568241044,-561.29848514,9.578e-05,2]
[400449781,1767568241055,-27084.0,9.578e-05,2]
[400449788,1767568248422,-1738.72338416,9.578e-05,2]
[400449793,1767568268082,173.38,7.991e-05,2]
[400449794,1767568268501,202.28,8.298e-05,2]
[400449796,1767568269006,231.18,8.605e-05,2]
[400449797,1767568269407,260.08,8.913e-05,2]
[400449798,1767568269809,288.97,9.22e-05,2]
[400449806,1767568283039,-300.0,9.577e-05,2]
[400449807,1767568308466,500.0,9.577e-05,2]
[400449808,1767568308785,500.0,9.577e-05,2]
[400449809,1767568309111,500.0,9.577e-05,2]
[400449810,1767568309453,500.0,9.577e-05,2]
[400449811,1767568309793,500.0,9.577e-05,2]
[400449812,1767568310105,500.0,9.577e-05,2]
[400449813,1767568310477,500.0,9.577e-05,2]
[400449814,1767568310789,500.0,9.577e-05,2]
[400449815,1767568310868,500.0,9.577e-05,2]
[400449816,1767568310906,500.0,9.577e-05,2]
[400449817,1767568311105,500.0,9.577e-05,2]
[400449830,1767568335958,195.76,7.103e-05,2]
[400449831,1767568336384,261.01,7.412e-05,2]
[400449833,1767568336785,326.27,7.721e-05,2]
[400449837,1767568337179,391.52,8.03e-05,2]
[400449839,1767568337595,456.77,8.339e-05,2]
[400449840,1767568338024,522.02,8.647e-05,2]
[400449841,1767568338464,587.28,8.956e-05,2]
[400449842,1767568338874,652.53,9.265e-05,2]
[400449843,1767568353458,153.0,8.3e-07,2]
[400449844,1767568408327,168.13,8.292e-05,2]
[400449845,1767568408836,185.72,8.623e-05,2]
[400449846,1767568408863,16.04,8.623e-05,2]
[400449847,1767568409147,235.38,8.955e-05,2]
[400449848,1767568409555,269.01,9.287e-05,2]
[400449849,1767568441299,4720.0915282,9.261e-05,2]
[400449850,1767568478531,157.49,8.947e-05,2]
[400449851,1767568479091,179.99,9.279e-05,2]
[400449852,1767568501586,235.0,9.577e-05,2]
[400449853,1767568501952,300.0,9.577e-05,2]
[400449854,1767568507347,437.0,9.577e-05,2]
[400449855,1767568544528,500.0,9.577e-05,2]
[400449856,1767568544597,500.0,9.577e-05,2]
[400449857,1767568544645,500.0,9.577e-05,2]
[400449858,1767568544696,500.0,9.577e-05,2]
[400449859,1767568544762,500.0,9.577e-05,2]
[400449860,1767568544804,500.0,9.577e-05,2]
[400449861,1767568544856,450.0084718,9.577e-05,2]
[400449862,1767568544882,49.9915282,9.577e-05,2]
[400449863,1767568544920,500.0,9.577e-05,2]
[400449864,1767568544965,272.49026035,9.577e-05,2]
[400449865,1767568547228,163.83,9.159e-05,2]
[400449866,1767568561021,404.86143957,8.777e-05,2]
[400449868,1767568562348,1617.82631251,9.568e-05,2]
[400449869,1767568576262,337.893356,9.577e-05,2]
[400449887,1767568723422,522.5710955,9.577e-05,2]
[400449888,1767568727383,-25299.83909933,9.578e-05,2]
[400449889,1767568751588,6130.54600787,9.478e-05,2]
[400449890,1767568751618,10000.01,9.478e-05,2]
[400449891,1767568776442,-485.05049706,9.478e-05,2]
[400449892,1767568782332,-160.24657823,9.478e-05,2]
[400449893,1767568784446,-228.59411619,9.478e-05,2]
[400449894,1767568786584,-373.99839486,9.478e-05,2]
[400449895,1767568788371,-173.71322542,9.478e-05,2]
[400449896,1767568788504,1008.57435096,9.478e-05,2]
[400449897,1767568792005,-437.2854422,9.478e-05,2]
[400449898,1767568795282,-198.67561924,9.478e-05,2]
[400449900,1767568798559,-182.20607008,9.478e-05,2]
[400449901,1767568801172,-811.30341874,9.478e-05,2]
[400449902,1767568802856,-307.48951275,9.478e-05,2]
[400449903,1767568807540,-281.12842569,9.478e-05,2]
[400449904,1767568811699,-231.53388265,9.478e-05,2]
[400449905,1767568814110,-190.59383662,9.478e-05,2]
[400449906,1767568816291,-162.79696376,9.478e-05,2]
[400449907,1767568818312,-163.08982215,9.478e-05,2]
[400449908,1767568822568,-281.21732008,9.478e-05,2]
[400449909,1767568824955,-249.18485632,9.478e-05,2]
[400449910,1767568827675,-176.39180006,9.478e-05,2]
[400449911,1767568830251,-173.67069067,9.478e-05,2]
[400449912,1767568833003,-243.87176837,9.478e-05,2]
[400449913,1767568838901,-504.66520894,9.478e-05,2]
[400449914,1767568841101,-228.08421647,9.478e-05,2]
[400449915,1767568846243,-174.02008125,9.478e-05,2]
[400449916,1767568848324,-304.0,9.478e-05,2]
[400449917,1767568851059,500.0,9.477e-05,2]
[400449918,1767568851163,-402.17351287,9.478e-05,2]
[400449919,1767568851205,500.0,9.477e-05,2]
[400449920,1767568851256,500.0,9.477e-05,2]
[400449921,1767568851347,500.0,9.477e-05,2]
[400449922,1767568851555,500.0,9.477e-05,2]
[400449923,1767568851666,622.67457655,9.477e-05,2]
[400449924,1767568851839,500.0,9.477e-05,2]
[400449925,1767568851892,500.0,9.477e-05,2]
[400449926,1767568852673,-500.0,9.478e-05,2]
[400449927,1767568853281,474.72114004,9.477e-05,2]
[400449929,1767568856636,-410.39368186,9.478e-05,2]
[400449930,1767568858927,-368.47453225,9.478e-05,2]
[400449931,1767568860947,-183.05847986,9.478e-05,2]
[400449932,1767568864234,-343.98739468,9.478e-05,2]
[400449933,1767568865525,500.0,9.477e-05,2]
[400449934,1767568865576,500.0,9.477e-05,2]
[400449935,1767568865631,350.0,9.477e-05,2]
[400449936,1767568865886,-168.06260476,9.478e-05,2]
[400449937,1767568870314,-302.21022397,9.478e-05,2]
[400449938,1767568872947,-482.94929806,9.478e-05,2]
[400449939,1767568876672,-296.52487137,9.478e-05,2]
[400449940,1767568878865,-296.05096189,9.478e-05,2]
[400449941,1767568881953,-180.71406105,9.478e-05,2]
[400449942,1767568886722,-323.95213532,9.478e-05,2]
[400449943,1767568888259,-288.7428616,9.478e-05,2]
[400449944,1767568890347,-244.80662036,9.478e-05,2]
[400449945,1767568893752,-306.14216045,9.478e-05,2]
[400449946,1767568897596,-303.21195072,9.478e-05,2]
[400449947,1767568899374,-232.04025047,9.478e-05,2]
[400449953,1767568902198,-240.44569934,9.478e-05,2]
[400449955,1767568904139,187.185,9.288e-05,2]
[400449956,1767568906704,-227.51795839,9.478e-05,2]
[400449957,1767568910309,-357.02846024,9.478e-05,2]
[400449958,1767568913494,-270.0328476,9.478e-05,2]
[400449959,1767568917319,-181.96242435,9.478e-05,2]
[400449960,1767568920158,-187.96584814,9.478e-05,2]
[400449961,1767568921595,-179.00505608,9.478e-05,2]
[400449962,1767568925263,-307.49708667,9.478e-05,2]
[400449963,1767568927923,-177.7,9.478e-05,2]
[400449964,1767568929972,-489.60534887,9.478e-05,2]
[400449965,1767568933317,-172.02805785,9.478e-05,2]
[400449966,1767568935463,-312.03415186,9.478e-05,2]
[400449967,1767568937709,-227.92739227,9.478e-05,2]
[400449968,1767568944007,-164.62526406,9.478e-05,2]
[400449969,1767568946110,-226.17522684,9.478e-05,2]
[400449970,1767568951661,-155.29460028,9.478e-05,2]
[400449971,1767568958390,381.46982712,9.477e-05,2]
[400449972,1767568987526,2475.38510533,8.939e-05,2]
[400449973,1767568987552,10000.01,8.939e-05,2]
[400449974,1767568987576,10000.01,8.939e-05,2]
[400449975,1767568987600,10000.01,8.939e-05,2]
[400449976,1767568987624,10000.01,8.939e-05,2]
[400449977,1767568987651,10000.01,8.939e-05,2]
[400449978,1767568987674,10000.01,8.939e-05,2]
[400449979,1767568987696,10000.01,8.939e-05,2]
[400449980,1767568987719,10000.01,8.939e-05,2]
[400449981,1767568987741,10000.01,8.939e-05,2]
[400449982,1767569001440,-166.50197223,8.939e-05,2]
[400449983,1767569005252,-314.82899109,8.939e-05,2]
[400449984,1767569006879,-316.94152014,8.939e-05,2]
[400449985,1767569008118,-4354.74367659,8.939e-05,2]
[400449986,1767569009506,-174.46640061,8.939e-05,2]
[400449987,1767569011085,-224.38933574,8.939e-05,2]
[400449988,1767569014395,-160.24657823,8.939e-05,2]
[400449989,1767569017002,-263.17107362,8.939e-05,2]
[400449990,1767569025309,-468.24925862,8.939e-05,2]
[400449991,1767569025339,-253.63976416,9.208e-05,2]
[400449992,1767569038707,263.17107362,9.478e-05,2]
[400449993,1767569107270,185.86147989,9.478e-05,2]
[400449996,1767569153037,156.04,8.978e-05,2]
[400449997,1767569153459,178.34,9.31e-05,2]
[400449998,1767569199345,3054.1384279,0.00015,10]
[400449999,1767569215371,1357.3747981,9.279e-05,2]
[400450003,1767569289990,5000.0,9.478e-05,2]
[400450004,1767569301960,936.5523147,9.279e-05,2]
[400450007,1767569313840,478.89228813,9.478e-05,2]
[400450008,1767569313865,4521.10771187,9.478e-05,2]
[400450027,1767569320683,170.822434,4.589e-05,2]
[400450028,1767569320895,170.822434,9.177e-05,2]
[400450030,1767569336950,5000.0,9.478e-05,2]
[400450031,1767569360298,137.25742013,9.478e-05,2]
[400450032,1767569360324,4862.74257987,9.478e-05,2]
[400450052,1767569383676,4782.42678496,9.478e-05,2]
[400450053,1767569412784,250.0,9.478e-05,2]
[400450054,1767569413427,104.84063517,9.478e-05,2]
[400450055,1767569413454,145.15936483,9.478e-05,2]
[400450056,1767569414029,250.0,9.478e-05,2]
[400450057,1767569414654,250.0,9.478e-05,2]
[400450058,1767569415296,250.0,9.478e-05,2]
[400450059,1767569415428,151.0,9.478e-05,2]
[400450060,1767569415958,250.0,9.478e-05,2]
[400450061,1767569416578,250.0,9.478e-05,2]
[400450062,1767569416856,241.09530883,9.478e-05,2]
[400450063,1767569417230,250.0,9.478e-05,2]
[400450064,1767569417859,250.0,9.478e-05,2]
[400450065,1767569418490,250.0,9.478e-05,2]
[400450066,1767569419152,250.0,9.478e-05,2]
[400450067,1767569419788,250.0,9.478e-05,2]
[400450068,1767569420418,553.64373807,9.478e-05,2]
[400450069,1767569420917,250.0,9.478e-05,2]
[400450070,1767569421492,250.0,9.478e-05,2]
[400450071,1767569422136,250.0,9.478e-05,2]
[400450072,1767569422803,250.0,9.478e-05,2]
[400450073,1767569423461,250.0,9.478e-05,2]
[400450074,1767569423995,151.0,9.478e-05,2]
[400450075,1767569424164,250.0,9.478e-05,2]
[400450076,1767569424624,151.0,9.478e-05,2]
[400450077,1767569424835,329.95937148,9.478e-05,2]
[400450078,1767569425248,200.94779933,9.478e-05,2]
[400450079,1767569425637,151.0,9.478e-05,2]
[400450080,1767569426253,151.0,9.478e-05,2]
[400450081,1767569427035,151.0,9.478e-05,2]
[400450082,1767569427688,151.0,9.478e-05,2]
[400450083,1767569428287,151.0,9.478e-05,2]
[400450084,1767569428977,151.0,9.478e-05,2]
[400450085,1767569429105,1623.23247118,9.478e-05,2]
[400450086,1767569429586,151.0,9.478e-05,2]
[400450087,1767569430193,151.0,9.478e-05,2]
[400450088,1767569430819,151.0,9.478e-05,2]
[400450105,1767569431479,151.0,9.478e-05,2]
[400450132,1767569431730,-9644.31043749,9.478e-05,2]
[400450134,1767569431741,-41679.11912985,9.478e-05,2]
[400450171,1767569432105,151.0,9.478e-05,2]
[400450235,1767569432719,151.0,9.478e-05,2]
[400450443,1767569434725,250.0,9.478e-05,2]
[400450481,1767569435329,250.0,9.478e-05,2]
[400450504,1767569438853,-156179.58542819,9.478e-05,2]
[400450505,1767569438913,-88445.08181013,9.478e-05,2]
[400450506,1767569439138,-333392.79977379,9.478e-05,2]
[400450512,1767569440877,-3e-08,9.478e-05,2]
[400450513,1767569440938,140.97194628,9.478e-05,2]
[400450514,1767569440962,60.96091471,9.478e-05,2]
[400450527,1767569445485,5000.0,9.478e-05,2]
[400450530,1767569446915,-908.18272636,9.478e-05,2]
[400450531,1767569453756,5000.0,9.478e-05,2]
[400450532,1767569462394,178.0,9.477e-05,2]
[400450533,1767569465848,271.96331382,8.568e-05,2]
[400450534,1767569467328,1086.76540204,9.353e-05,2]
[400450535,1767569469618,217.442454,9.478e-05,2]
[400450536,1767569477543,3245.83883014,9.478e-05,2]
[400450537,1767569477570,1754.16116986,9.478e-05,2]
[400450538,1767569488362,150.37,8.509e-05,2]
[400450539,1767569488748,180.45,8.849e-05,2]
[400450540,1767569489176,210.52,9.19e-05,2]
[400450541,1767569494029,2577.8656751,8.922e-05,2]
[400450542,1767569504836,500.0,9.477e-05,2]
[400450543,1767569507304,500.0,9.477e-05,2]
[400450544,1767569507362,500.0,9.477e-05,2]
[400450545,1767569507806,160.25986846,9.477e-05,2]
[400450546,1767569507859,500.0,9.477e-05,2]
[400450547,1767569509786,500.0,9.477e-05,2]
[400450548,1767569509838,500.0,9.477e-05,2]
[400450549,1767569509870,400.4819955,9.477e-05,2]
[400450550,1767569509904,500.0,9.477e-05,2]
[400450551,1767569512880,500.0,9.477e-05,2]
[400450552,1767569512912,500.0,9.477e-05,2]
[400450553,1767569514759,65.90129108,9.477e-05,2]
[400450554,1767569514788,234.09870892,9.477e-05,2]
[400450555,1767569522376,300.0,9.477e-05,2]
[400450556,1767569523130,500.0,9.477e-05,2]
[400450557,1767569523166,500.0,9.477e-05,2]
[400450558,1767569523200,500.0,9.477e-05,2]
[400450559,1767569526474,500.0,9.477e-05,2]
[400450560,1767569526512,500.0,9.477e-05,2]
[400450561,1767569526542,404.24281571,9.477e-05,2]
[400450562,1767569526575,500.0,9.477e-05,2]
[400450563,1767569533340,500.0,9.477e-05,2]
[400450564,1767569536844,500.0,9.477e-05,2]
[400450565,1767569536967,500.0,9.477e-05,2]
[400450566,1767569537017,500.0,9.477e-05,2]
[400450567,1767569537049,500.0,9.477e-05,2]
[400450568,1767569537083,500.0,9.477e-05,2]
[400450569,1767569551345,500.0,9.477e-05,2]
[400450570,1767569551381,500.0,9.477e-05,2]
[400450571,1767569551419,500.0,9.477e-05,2]
[400450572,1767569551454,500.0,9.477e-05,2]